Cogmind - Beta 13 @@@ ROGUE MODE // 2024.04.05 @ 16:06:09 Player: Iris Result: Self-destructed Performance ------------- Evolutions (2) 1000 Regions Visited (6) 1200 Robots Destroyed (33) 165 Value Destroyed (835) 835 Prototype IDs (6) 120 Alien Tech Used (0) 0 Bonus (500) 500 TOTAL SCORE: 3820 Bonus ------- Entered Garrisons 200 Aligned with FarCom 300 Cogmind --------- Core Integrity 457/550 Matter 295/300 Energy 14/100 System Corruption 3% Temperature Warm (125) Movement Walking (130) Location -8/Garrison Parts ------- > --- POWER (1) -------- (None) > --- PROPULSION (3) --- Titanium Leg > --- UTILITY (4) ------ Trap Scanner Improved Signal Interpreter Trap Reconfigurator > --- WEAPON (3) ------- Precision Beam Rifle Improved Datajack > --- INVENTORY (5) ---- Powered Armor Hacking Suite Improved EM Shotgun Peak State ------------ > --- POWER ------------ Light Angular Momentum Engine > --- PROPULSION ------- Titanium Leg VSS Leg Potential Leg > --- UTILITY ---------- Trap Scanner Improved Signal Interpreter Powered Armor Trap Reconfigurator > --- WEAPON ----------- Improved Datajack Greatsword > --- INVENTORY -------- Ion Engine Improved EM Shotgun Precision Beam Rifle Precision Beam Rifle Grenade Launcher [Rating: 52] Favorites ----------- Power Ion Engine Engine Ion Engine Power Core Light Nuclear Core Propulsion Potential Leg Leg Potential Leg Flight Unit VTOL Module Utility Trap Reconfigurator Device Trap Reconfigurator Storage Small Storage Unit Processor Signal Interpreter Protection Powered Armor Weapon Improved Datajack Energy Gun Precision Beam Rifle Ballistic Gun Light Assault Rifle Launcher Grenade Launcher Special Weapon Enhanced Flamer Impact Weapon Power Maul Slashing Weapon Greatsword Special Melee Weapon Improved Datajack Build | -11 -10 -10 -10 -9 -8 -8 ------- Run | Yrd Mat Min Exi Min Mat Gar Slots Evolved 4 | . . . . . 4 . Power . | . . . . . . . Propulsion 1 | . . . . . 1 . Utility 2 | . . . . . 2 . Weapon 1 | . . . . . 1 . Parts Attached 41 | 6 4 . 6 3 16 6 Power 6 | 1 . . 1 . 2 2 Engine 3 | 1 . . 1 . 1 . Core 3 | . . . . . 1 2 Reactor . | . . . . . . . Propulsion 10 | 2 2 . 2 . 3 1 Treads . | . . . . . . . Leg 8 | 2 . . 2 . 3 1 Wheel . | . . . . . . . Hover . | . . . . . . . Flight 2 | . 2 . . . . . Utility 12 | 1 . . 2 2 7 . Device 5 | . . . 2 . 3 . Storage 1 | 1 . . . . . . Processor 3 | . . . . . 3 . Hackware . | . . . . . . . Protection 3 | . . . . 2 1 . Artifact . | . . . . . . . Weapon 13 | 2 2 . 1 1 4 3 Energy Gun 3 | . . . . . . 3 Energy Cannon . | . . . . . . . Ballistic Gun 2 | 2 . . . . . . Ballistic Cannon . | . . . . . . . Launcher 1 | . 1 . . . . . Special Weapon 1 | . . . . . 1 . Impact Weapon 3 | . 1 . 1 1 . . Slashing Weapon 2 | . . . . . 2 . Piercing Weapon . | . . . . . . . Special Melee Weapon 1 | . . . . . 1 . Unidentified Prototypes 3 | . . . 2 . . 1 Corrupted Parts 1 | . . . . . . 1 System Corruption 1 | . . . . . . 1 Parts Lost 5 | . . . . . . 5 Power 2 | . . . . . . 2 Propulsion 1 | . . . . . . 1 Utility 1 | . . . . . . 1 Weapon 1 | . . . . . . 1 Highest Loss Streak 2 | . . . . . . 2 To Critical Strikes . | . . . . . . . Average Slot Usage (%) 85 | . 82 57 71 86 90 93 Engine 9 | . 14 14 14 14 8 1 Core 1 | . . . . . . 4 Leg 25 | . 20 . 24 28 26 26 Flight 1 | . 5 28 3 . . . Device 16 | . . . 12 14 17 26 Processor 5 | . . . . . 8 9 Protection 3 | . . . . 1 8 . Energy Gun 2 | . . . . . . 14 Launcher 5 | . 12 14 14 14 . . Special Weapon 1 | . . . . . 2 . Impact Weapon 3 | . 10 . 2 14 2 . Slashing Weapon 3 | . . . . . 7 1 Special Melee Weapon 4 | . . . . . 6 9 Naked Turns . | . . . . . . . Heaviest Build 30 | 13 16 8 12 22 30 19 Greatest Support 77 | 20 20 8 60 60 77 59 Greatest Overweight (x) 3 | 1 3 . 2 . . 2 Average Overweight (x) . | . . . . . . . Largest Inventory Capacity 8 | 8 8 5 5 5 5 5 Average Capacity 5 | 6 8 5 5 5 5 5 Most Carried 6 | . 6 5 5 5 5 5 Average Carried 4 | . 2 4 4 4 4 3 Final Capacity 8 | 8 8 5 5 5 5 5 Final Carried 6 | . 6 5 4 5 5 3 Class Distribution -------------------- 78% | Mutant 15% | Assassin 6% | Sprinter Dominant Class ---------------- Mutant | -10/Materials Sprinter | -10/Mines Mutant | -10/Exiles Mutant | -9/Mines Mutant | -8/Materials Assassin | -8/Garrison Resources | -11 -10 -10 -10 -9 -8 -8 ----------- Run | Yrd Mat Min Exi Min Mat Gar Matter Collected 645 | 212 . . . 79 309 45 Remotely . | . . . . . . . Salvage Created 1123 | . . . . 22 863 238 Parts 67 | . . . . 5 49 13 Haulers Intercepted 1 | . . . . . 1 . Recyclers Shooed . | . . . . . . . Parts Field Recycled . | . . . . . . . Retrieved Matter . | . . . . . . . Parts Self-Destructed . | . . . . . . . Prevented . | . . . . . . . Kills | -11 -10 -10 -10 -9 -8 -8 ------- Run | Yrd Mat Min Exi Min Mat Gar Combat Hostiles Destroyed 20 | . . . . 5 10 5 Melee 9 | . . . . . 9 . Guns 3 | . . . . . . 3 AOE 7 | . . . . 5 . 2 Classes Destroyed 10 | . . . . 1 8 1 Worker 4 | . . . . . 4 . Builder 2 | . . . . . 2 . Tunneler 2 | . . . . . 2 . Hauler 1 | . . . . . 1 . Recycler 2 | . . . . . 2 . Operator 2 | . . . . . 2 . Swarmer 5 | . . . . 5 . . Grunt 13 | . . . . . 9 4 Sentry 1 | . . . . . 1 . Hunter 1 | . . . . . . 1 Best Kill Streak 5 | . . . . 5 4 2 Combat Bots Only 5 | . . . . 5 3 2 Max Kills in Single Turn 2 | . . . . 2 1 2 Gunslinging . | . . . . . . . Exploded 2 | . . . . 2 . 2 Melee 1 | . . . . . 1 . Uniques/NPCs Destroyed . | . . . . . . . Combat | -11 -10 -10 -10 -9 -8 -8 -------- Run | Yrd Mat Min Exi Min Mat Gar Hostile Shots Fired 104 | . . . . 8 42 54 Missed 25 | . . . . 3 5 17 Damage Taken 1353 | . . . . 89 584 680 Core 102 | . . . . 9 . 93 Absorbed by Shields . | . . . . . . . Regen/Repaired (Parts) 115 | . . . . . 115 . Core Remaining (%) 98 | 100 . . . 96 . . Volleys Fired 25 | . . . . 5 2 18 Largest 2 | . . . . 1 1 2 Hottest 122 | . . . . 30 80 122 Shots Fired 41 | . . . . 5 2 34 Gun 34 | . . . . . . 34 Cannon . | . . . . . . . Launcher 5 | . . . . 5 . . Special 2 | . . . . . 2 . Kinetic . | . . . . . . . Thermal 30 | . . . . . 2 28 Explosive 5 | . . . . 5 . . Electromagnetic 6 | . . . . . . 6 Robot Hit Streak 8 | . . . . 2 4 8 Robot Miss Streak 3 | . . . . 1 . 3 Penetration Max . | . . . . . . . Secondary Targets . | . . . . . . . Shots Hit Robots 64 | . . . . 2 42 20 Core Hits 31 | . . . . 6 16 9 Critical Kills . | . . . . . . . Critical Parts Destroyed . | . . . . . . . Critical Strikes 2 | . . . . . 1 1 Burn 1 | . . . . . . 1 Sever 1 | . . . . . 1 . Melee Attacks 47 | . . . . . 44 3 Impact 1 | . . . . . 1 . Slashing 45 | . . . . . 42 3 Piercing . | . . . . . . . Sneak Attacks 16 | . . . . . 16 . Combat Hostiles . | . . . . . . . Follow-up Attacks . | . . . . . . . Damage Inflicted 3592 | . . . . 332 2762 498 Guns 302 | . . . . . . 302 Cannons . | . . . . . . . Explosions 441 | . . . . 332 . 109 Melee 2827 | . . . . . 2740 87 Ramming . | . . . . . . . Kinetic . | . . . . . . . Thermal 339 | . . . . . 22 317 Explosive 332 | . . . . 332 . . Electromagnetic 94 | . . . . . . 94 Impact 44 | . . . . . 44 . Slashing 2783 | . . . . . 2696 87 Piercing . | . . . . . . . Highest Corruption 3 | . . . . . . 3 Average Corruption 1 | . . . . . . 1 Corruption Purged . | . . . . . . . Corruption Blocked . | . . . . . . . Effects 2 | . . . . . . 2 Message Errors 1 | . . . . . . 1 Heat Flow Errors 1 | . . . . . . 1 Overload Shots . | . . . . . . . Overflow Damage 732 | . . . . 5 691 36 Projectiles . | . . . . . . . Explosions 36 | . . . . 5 . 31 Melee 696 | . . . . . 691 5 Knockbacks . | . . . . . . . Impact . | . . . . . . . Kinetic . | . . . . . . . Secondary . | . . . . . . . Self-Inflicted Damage 74 | . . . . 27 . 47 Shots 2 | . . . . 1 . 1 Rammed . | . . . . . . . Targets Rammed . | . . . . . . . Kicked . | . . . . . . . Crushed . | . . . . . . . Highest Temperature 164 | . . . . . 64 164 Average Temperature 59 | . . . . . 28 64 Received Heat Transfer 576 | . . . . . 378 198 Siege Activations . | . . . . . . . Robots Corrupted . | . . . . . . . Combat Hostiles . | . . . . . . . Parts Fried 2 | . . . . . 2 . Impact Corruptions 1 | . . . . . 1 . Robots Melted . | . . . . . . . Combat Hostiles . | . . . . . . . Parts Melted 1 | . . . . . . 1 Heat Transferred 778 | . . . . . 160 618 Parts Sabotaged . | . . . . . . . Parts Stolen . | . . . . . . . Parts Stripped . | . . . . . . . Power Chain Reactions 1 | . . . . . . 1 Alert | -11 -10 -10 -10 -9 -8 -8 ------- Run | Yrd Mat Min Exi Min Mat Gar Peak Influence 264 | . . . . 130 264 235 Initial 65 | . . . . . 50 65 Average 112 | . . . . 93 124 166 Maximum Alert Level 1 | . . . . . 1 1 Low Security (%) 82 | 100 100 100 . 100 78 69 Level 1 17 | . . . . . 21 30 Level 2 . | . . . . . . . Level 3 . | . . . . . . . Level 4 . | . . . . . . . Level 5 . | . . . . . . . High Security . | . . . . . . . Max Security . | . . . . . . . Squads Dispatched 7 | . . . . 1 6 . Investigation 3 | . . . . 1 2 . Extermination . | . . . . . . . Reinforcement 4 | . . . . . 4 . Assault . | . . . . . . . Garrison . | . . . . . . . Intercept . | . . . . . . . Searches Triggered . | . . . . . . . Construction Impeded . | . . . . . . . Haulers Reinforced . | . . . . . . . Active Scanning Responses . | . . . . . . . Cargo Convoy Interrupts . | . . . . . . . Stealth | -11 -10 -10 -10 -9 -8 -8 --------- Run | Yrd Mat Min Exi Min Mat Gar Distress Signals 6 | . . . . . 6 . Communications Jammed . | . . . . . . . Distress Signals . | . . . . . . . Times Spotted 33 | . 1 . . 7 14 11 Peak Tracking Total 8 | . 1 . . 4 4 8 Tactical Retreats 2 | . . . . . . 2 Traps | -11 -10 -10 -10 -9 -8 -8 ------- Run | Yrd Mat Min Exi Min Mat Gar Traps Triggered . | . . . . . . . Indirectly . | . . . . . . . Trap Hack Attempts . | . . . . . . . Triggered . | . . . . . . . Disarmed . | . . . . . . . Reprogrammed . | . . . . . . . Reused . | . . . . . . . Traps Reconfigurated 12 | . . . . . 10 2 Traps Extracted . | . . . . . . . Installed . | . . . . . . . Triggered . | . . . . . . . Machines | -11 -10 -10 -10 -9 -8 -8 ---------- Run | Yrd Mat Min Exi Min Mat Gar Machines Disabled . | . . . . . . . Max in Single Turn . | . . . . . . . Machines Repaired . | . . . . . . . Machines Dismantled . | . . . . . . . Machines Sabotaged . | . . . . . . . Overloaded Fab Kills . | . . . . . . . Hacking | -11 -10 -10 -10 -9 -8 -8 --------- Run | Yrd Mat Min Exi Min Mat Gar Machines Accessed 14 | . . . 4 1 8 1 Terminals 6 | . . . . . 5 1 Fabricators . | . . . . . . . Repair Stations 1 | . . . . . 1 . Recycling Units . | . . . . . . . Scanalyzers 1 | . . . . . 1 . Garrison Access 1 | . . . . . 1 . Total Hacks 80 | . . . 49 1 28 2 Successful 66 | . . . 49 1 15 1 Failed 14 | . . . . . 13 1 Catastrophic 2 | . . . . . 1 1 Database Lockouts . | . . . . . . . Manual 12 | . . . 2 . 10 . Terminals 22 | . . . . . 20 2 Fabricators . | . . . . . . . Repair Stations 2 | . . . . . 2 . Recycling Units . | . . . . . . . Scanalyzers 5 | . . . . . 5 . Garrison Access 1 | . . . . . 1 . Terminal Hacks 60 | . . . 49 1 9 1 Record 49 | . . . 49 . . . Prototype ID Bank 1 | . . . . . 1 . Open Door 1 | . . . . 1 . . Branch Access Points 1 | . . . . . 1 . Alert Level 1 | . . . . . 1 . Locate Traps 1 | . . . . . 1 . Dispatch Records 1 | . . . . . 1 . Maintenance Status 1 | . . . . . 1 . Transport Status 2 | . . . . . 2 . Hauler Manifests 1 | . . . . . 1 . Security Stations 1 | . . . . . . 1 Fabricator Hacks . | . . . . . . . Repair Station Hacks 2 | . . . . . 2 . Scan Component 1 | . . . . . 1 . Repair 1 | . . . . . 1 . Recycling Unit Hacks . | . . . . . . . Scanalyzer 3 | . . . . . 3 . Insert Component 2 | . . . . . 2 . Analyze 1 | . . . . . 1 . Garrison Access Hacks 1 | . . . . . 1 . Unlock Access 1 | . . . . . 1 . Unauthorized Hacks . | . . . . . . . Terminals . | . . . . . . . Fabricators . | . . . . . . . Repair Stations . | . . . . . . . Recycling Units . | . . . . . . . Scanalyzers . | . . . . . . . Garrison Access . | . . . . . . . Data Cores Recovered . | . . . . . . . Used . | . . . . . . . Hacking Detections 6 | . . . . . 5 1 Full Trace Events 6 | . . . . . 5 1 Feedback Events . | . . . . . . . Feedback Blocked . | . . . . . . . Robot Schematics Acquired . | . . . . . . . Robots Built . | . . . . . . . Authchips . | . . . . . . . Time . | . . . . . . . Total Robot Build Rating . | . . . . . . . Part Schematics Acquired 1 | . . . . . 1 . Parts Built . | . . . . . . . Authchips . | . . . . . . . Time . | . . . . . . . Total Part Build Rating . | . . . . . . . Parts Repaired 1 | . . . . . 1 . Time 44 | . . . . . 44 . Parts Recycled . | . . . . . . . Recycled Matter . | . . . . . . . Retrieved Matter . | . . . . . . . Retrieved Components . | . . . . . . . Parts Scanalyzed 1 | . . . . . 1 . Part Schematics Acquired 1 | . . . . . 1 . Parts Damaged 1 | . . . . . 1 . Bothacking | -11 -10 -10 -10 -9 -8 -8 ------------ Run | Yrd Mat Min Exi Min Mat Gar Used RIF Installer . | . . . . . . . Robots Hacked . | . . . . . . . Non-combat . | . . . . . . . Combat . | . . . . . . . Robot Hacks Applied . | . . . . . . . Relay Couplers Released . | . . . . . . . Fabnet Peak Effective % . | . . . . . . . Robots Rewired . | . . . . . . . Allies Hacked . | . . . . . . . Hacks Repelled . | . . . . . . . Allies | -11 -10 -10 -10 -9 -8 -8 -------- Run | Yrd Mat Min Exi Min Mat Gar Total Allies . | . . . . . . . Largest Group . | . . . . . . . Highest-Rated Group . | . . . . . . . Highest-Rated Ally . | . . . . . . . Total Orders . | . . . . . . . Ally Attacks . | . . . . . . . Total Damage . | . . . . . . . Kills . | . . . . . . . Allies Corrupted . | . . . . . . . Allies Melted . | . . . . . . . Intel | -11 -10 -10 -10 -9 -8 -8 ------- Run | Yrd Mat Min Exi Min Mat Gar Robot Analysis Total . | . . . . . . . Derelict Logs Recovered 3 | . . 1 . 2 . . Drone Launches . | . . . . . . . Drone Recoveries . | . . . . . . . Exploration | -11 -10 -10 -10 -9 -8 -8 ------------- Run | Yrd Mat Min Exi Min Mat Gar Turns Passed 2870 | 89 114 70 659 259 1304 375 Spaces Moved 2507 | 71 87 93 842 220 1041 153 Core 10 | 8 . . 1 . . 1 Treads . | . . . . . . . Legs 2178 | 63 70 . 632 220 1041 152 Wheels . | . . . . . . . Hover . | . . . . . . . Flight 319 | . 17 93 209 . . . Fastest Speed 32 | 50 112 32 32 90 90 90 Average Speed 91 | 114 120 32 76 90 102 107 Slowest Speed 275 | 120 275 32 150 90 110 150 Overloaded Moves . | . . . . . . . Propulsion Burnouts . | . . . . . . . Robots Hopped . | . . . . . . . Cave-ins Triggered . | . . . . . . . Exploration Rate (%) 37 | 4 19 23 92 47 60 17 Regions Visited 6 Branch Regions 3 Pre-discovered Areas 1 | . . . 1 . . . Known Exits Taken 1 | . . . . . 1 . Unknown Exits Taken 5 | 1 1 1 1 1 . . Scrap Searched 1 | . . . . 1 . . Spaces Dug 1 | . . . . . 1 . Terrain Destroyed 31 | . . . . 23 1 7 Melee 1 | . . . . . 1 . Projectile . | . . . . . . . AOE 30 | . . . . 23 . 7 Terrain Rammed . | . . . . . . . Walls Destroyed . | . . . . . . . Machines Disabled . | . . . . . . . Actions | -11 -10 -10 -10 -9 -8 -8 --------- Run | Yrd Mat Min Exi Min Mat Gar Total 2947 | 76 96 134 855 275 1189 322 Wait 285 | . . 39 . 45 60 141 Move 2501 | 70 86 92 841 219 1040 153 Hop . | . . . . . . . Pick Up 10 | . 2 . 2 1 5 . Fast Attach 36 | 6 4 . 5 3 15 3 Attach 5 | . . . 1 . 1 3 Detach 14 | . 4 1 . . 8 1 Swap . | . . . . . . . Drop 24 | . . 2 6 2 14 . Fire 25 | . . . . 5 2 18 Melee 47 | . . . . . 44 3 Ram . | . . . . . . . Kick . | . . . . . . . Crush . | . . . . . . . Escape Stasis . | . . . . . . . Rewire . | . . . . . . . Trap . | . . . . . . . Miscellaneous . | . . . . . . . Route ------- -11/Scrapyard -10/Materials -10/Mines -10/Exiles (discovered 2 exits: *Min x2) -9/Mines -8/Materials (discovered 2 exits: *Fac / Gar) -8/Garrison History --------- Turn | Location | Event 12 | -11/Scrapyard | Discovered new exit (range 14) 90 | -11/Scrapyard | Entered Materials 166 | -10/Materials | Discovered new exit (range 6) 177 | -10/Materials | Met 8R-AWN 204 | -10/Materials | Entered Mines 205 | -10/Mines | Followed 8R-AWN into the Mines 209 | -10/Mines | Learned Materials garrison access intel 272 | -10/Mines | Discovered new exit (range 5) 274 | -10/Mines | Entered Exiles 285 | -10/Exiles | Welcomed by 8R-AWN 299 | -10/Exiles | Met EX-HEX 314 | -10/Exiles | Met EX-BIN 321 | -10/Exiles | Aligned with FarCom system 322 | -10/Exiles | Given EX-Vault access code 336 | -10/Exiles | Opened EX-Vault 340 | -10/Exiles | Found Prototype Device 340 | -10/Exiles | Identified Trap Reconfigurator 358 | -10/Exiles | Found Prototype Leg 358 | -10/Exiles | Identified Potential Leg 361 | -10/Exiles | Found Potential Leg 408 | -10/Exiles | Warned to stay clear of 0b10 Research branches 444 | -10/Exiles | Met EX-DEC 460 | -10/Exiles | Learned location of Zion (-7) 519 | -10/Exiles | Visited The Gauntlet 650 | -10/Exiles | Build established: Mutant 688 | -10/Exiles | Discovered new exit (range 10) 772 | -10/Exiles | Learned about 8R-AWN's background 804 | -10/Exiles | Discovered new exit (range 15) 933 | -10/Exiles | Stole two prototypes: Trap Reconfigurator, Potential Leg 933 | -10/Exiles | Entered Mines 949 | -9/Mines | Learned Materials terminal intel 953 | -9/Mines | Learned Materials terminal intel 982 | -9/Mines | YI-UF0 nonchalantly dropped a Grenade Launcher on the ground 1096 | -9/Mines | A weapon hastily lodged in a ceiling crevice suddenly fell to the ground 1151 | -9/Mines | Met a Derelict shopkeep closing up shop 1165 | -9/Mines | Found Powered Armor 1182 | -9/Mines | Discovered new exit (range 12) 1192 | -9/Mines | Entered Materials 1192 | -8/Materials | Evolved 4 slots: Propulsion x1, Utility x2, Weapon x1 1193 | -8/Materials | Loaded intel: 12 terminal locations 1194 | -8/Materials | Loaded intel: 1 garrison access location 1728 | -8/Materials | Discovered new exit (range 14) 1966 | -8/Materials | Identified exit to Factory 2154 | -8/Materials | Repaired Powered Armor 2166 | -8/Materials | Met 7R-MNS 2364 | -8/Materials | Identified exit to Garrison 2496 | -8/Materials | Entered Garrison 2508 | -8/Garrison | Learned Materials security intel 2703 | -8/Garrison | Build established: Assassin 2871 | -8/Garrison | Self-destructed Last Messages --------------- 02722_ Lgt. Nuclear Core destroyed. 02750_ G-47 Trooper destroyed. 02802_ Acquired Corrupted Lgt. Nuclear Core. 02802_ Integrated Corrupted Lgt. Nuclear Core (+1). 02817_ System corrupted: Heat flow error (+140). 02822_ Acquired 10 matter. 02849_ Knocked back. 02850_ Imp. Sensor Array destroyed. 02850_ System corrupted by crushing effect (+2). 02850_ Knocked back. 02852_ VSS Leg severed. 02852_ Potential Leg severed. Garrison Door activated. 02858_ Lgt. Nuclear Core severed. 02860_ R4C,YYZ18KSKFFA0=:2/ 5Y 02862_ Acquired VSS Leg. 02864_ Prc. Beam Rifle severed. 02869_ C-17 Slicer suffers critical hit (Burn). 02870_ VSS Leg destroyed. Map ----- +----------------------------------------------------+ | ?????????????????????????????????????????????????? | | ?????????????????????????????????????????????????? | | ?????????????????????????????????????????????????? | | ?????????????????????????????????????????????????? | | ?????????????????????????????????????????????????? | | ?????????????????????????????????????????????????? | | ?????????????????????????????????????????????????? | | ?????????????????????????????????????????????????? | | ?????????????????????????????????????????????????? | | ?????????????????????????????????????????????????? | | ??????????????????h?h?? ????????????????????????? | | ??????????????????????# ##??????????????????????? | | ?????????????????? ??? #??????????????????????? | | ?????????????????? ?? #??????????????????????? | | ???????????? ????? ?? #??????????????????????? | | ???????????? ?#?? ?# #??????????????????????? | | ???????????# ## ? ## #??????????????????????? | | ??????????g" ?? ??????????????????????? | | ???????????? ?? g?????????????????????? | | ??????????g?? ? g?????????????????????? | | ??????????g???? ?? ??????????????????????? | | ???????????#????# ?# #??????????????????????? | | ?????????### ## ## ##########?????????????? | | ???????? ^ #?????????????? | | ???????? * #?????????????? | | ???????? g c@#?????# #?????????????? | | ???????????????## gg ##Yc##?????# #?????????????? | | ??????????????????????# #??????# #?????????????? | | ??????????????????????# ??????# #?????????????? | | ??????????????????????# #??????# #?????????????? | | ??????????????????????# #??????# #?????????????? | | ??????????????????????# #??????# #??????#####??? | | ??????????????????????# #??????#^^#??????# # ##?? | | ??????????????????????# ######## #########""###? | | ??????????????????????# %[== =%[%% #? | | ??????????????????????# [=%! [[! #? | | ??????????????????????########### ########"#" #? | | ????????????????????????????????# #??????#### #? | | ????????????????????????????????# #?????????# ## | | ???????????????????????????????g" ?????????# | | ????????????????????????????????" ????????# ## | | ????????????????????????????????" "???????# ## | | ????????????????????????????????# ##"#??????# | | ????????????????????????????????# #?##??????# | | ????????????????????????????????# #?????????# | | ????????????????????????????????# #?????????##### | | ????????????????????????????????# #?????????????? | | ????????????????????????????????# #?????????????? | | ?????????????????????????????????##??????????????? | | ?????????????????????????????????????????????????? | +----------------------------------------------------+ Best States ------------- Heat Dissipation 31 Energy Generation 18 Energy Capacity 250 Matter Stores 300 Matter Capacity 300 Sight Range 16 Robot Scan Range 15 Terrain Scan Density 85 Armor Coverage 400 Evasion (%) 63 Item Schematics ----------------- Hardlight Generator | -8/Materials | Scanalyzed Robot Schematics ------------------ None Fabricated ------------ Nothing Alien Tech Used ----------------- None Achievements -------------- I Spy Safety First Challenges ------------ None Game ------ Seed LinearShockTriangulator Manual? 0 Play Time 00:30:30 Cumulative 8.5 hours Start 2024.04.05 @ 15:36:30 End 2024.04.05 @ 16:06:09 Sessions 1 Manual Loads 0 Difficulty Rogue Special Mode None Game No. 26 Rogue 26 Adventurer 0 Explorer 0 Win Type - Total 0 Types 0/0/0/0/0/0/0/0/0 Lore% 12 Gallery% 17 Achievement% 16 Wizard Run 0 Options --------- Layout 2 ASCII 0 Keyboard 1 Movement Arrows Keybinds 0 Fullscreen 2 Font 32/SmallcapsGlow Map View 50x44 Zoom Use 0% Tactical HUD 1 Map Filters NONE Filters NONE Steam 1 RUN: fada87eb-72bf-4367-bff9-96368530f226